[Event "Titled Tuesday Blitz November 08 Early 2022"]
[White "Prohorov, Olexandr"]
[Black "Krysa, Leandro"]
[WhiteFideId "14105578"]
[BlackFideId "116807"]
[WhiteElo "1993"]
[BlackElo "2485"]
[Result "0-1"]
[Round "01"]
[TimeControl "180+1"]
[Date "2022.11.09"]
[WhiteClock "0:00:18"]
[BlackClock "0:01:18"]

1. Nf3 {[%clk 0:02:56]}  g6 {[%clk 0:02:59]} 2. d4 {[%clk 0:02:54]}  Bg7 {[%clk 0:02:59]} 3. c4 {[%clk 0:02:53]}  d6 {[%clk 0:02:55]} 4. Nc3 {[%clk 0:02:52]}  e5 {[%clk 0:02:54]} 5. dxe5 {[%clk 0:02:44]}  dxe5 {[%clk 0:02:54]} 6. Qxd8+ {[%clk 0:02:44]}  Kxd8 {[%clk 0:02:54]} 7. Bg5+ {[%clk 0:02:41]}  f6 {[%clk 0:02:53]} 8. O-O-O+ {[%clk 0:02:41]}  Nd7 {[%clk 0:02:52]} 9. Be3 {[%clk 0:02:40]}  c6 {[%clk 0:02:49]} 10. g4 {[%clk 0:02:37]}  Kc7 {[%clk 0:02:44]} 11. g5 {[%clk 0:02:33]}  f5 {[%clk 0:02:40]} 12. h4 {[%clk 0:02:19]}  h5 {[%clk 0:02:38]} 13. gxh6 {[%clk 0:02:17]}  Bxh6 {[%clk 0:02:35]} 14. Bxh6 {[%clk 0:01:56]}  Nxh6 {[%clk 0:02:34]} 15. e4 {[%clk 0:01:57]}  Ng4 {[%clk 0:02:27]} 16. Rd2 {[%clk 0:01:50]}  Nc5 {[%clk 0:02:26]} 17. Ng5 {[%clk 0:01:46]}  Bd7 {[%clk 0:02:11]} 18. b4 {[%clk 0:01:36]}  Ne6 {[%clk 0:02:07]} 19. Nf7 {[%clk 0:00:59]}  Rh7 {[%clk 0:02:00]} 20. Nd6 {[%clk 0:00:56]}  Nd4 {[%clk 0:01:54]} 21. c5 {[%clk 0:00:54]}  Rah8 {[%clk 0:01:52]} 22. f4 {[%clk 0:00:46]}  Rxh4 {[%clk 0:01:37]} 23. Rxh4 {[%clk 0:00:45]}  Rxh4 {[%clk 0:01:38]} 24. fxe5 {[%clk 0:00:44]}  Nf3 {[%clk 0:01:38]} 25. Rd3 {[%clk 0:00:34]}  Nfxe5 {[%clk 0:01:35]} 26. Rd1 {[%clk 0:00:32]}  f4 {[%clk 0:01:27]} 27. b5 {[%clk 0:00:18]}  Ne3 {[%clk 0:01:20]} 28. Re1 {[%clk 0:00:18]}  Rh1 {[%clk 0:01:18]} 0-1


[Site "https://www.chess.com"]

[Event "Titled Tuesday Blitz November 08 Early 2022"]
[White "Rios Escobar, Adan"]
[Black "Nouri, Alekhine"]
[WhiteFideId "3403645"]
[BlackFideId "5216184"]
[WhiteElo "2341"]
[BlackElo "2151"]
[Result "1/2-1/2"]
[Round "01"]
[TimeControl "180+1"]
[Date "2022.11.09"]
[WhiteClock "0:00:05"]
[BlackClock "0:01:46"]

1. d4 {[%clk 0:00:29]}  Nf6 {[%clk 0:02:55]} 2. g3 {[%clk 0:00:29]}  c5 {[%clk 0:02:55]} 3. d5 {[%clk 0:00:29]}  g6 {[%clk 0:02:56]} 4. c4 {[%clk 0:00:29]}  Bg7 {[%clk 0:02:56]} 5. Nc3 {[%clk 0:00:29]}  O-O {[%clk 0:02:56]} 6. Nf3 {[%clk 0:00:29]}  e6 {[%clk 0:02:56]} 7. Bg2 {[%clk 0:00:30]}  exd5 {[%clk 0:02:56]} 8. cxd5 {[%clk 0:00:31]}  d6 {[%clk 0:02:57]} 9. O-O {[%clk 0:00:30]}  Qe7 {[%clk 0:02:55]} 10. h3 {[%clk 0:00:30]}  a6 {[%clk 0:02:55]} 11. a4 {[%clk 0:00:29]}  Nbd7 {[%clk 0:02:53]} 12. Re1 {[%clk 0:00:29]}  Ne8 {[%clk 0:02:53]} 13. e4 {[%clk 0:00:29]}  Ne5 {[%clk 0:02:51]} 14. Nxe5 {[%clk 0:00:29]}  Bxe5 {[%clk 0:02:52]} 15. f4 {[%clk 0:00:30]}  Bd4+ {[%clk 0:02:51]} 16. Kh2 {[%clk 0:00:30]}  Qc7 {[%clk 0:02:51]} 17. Be3 {[%clk 0:00:27]}  Bg7 {[%clk 0:02:51]} 18. Bf2 {[%clk 0:00:26]}  f5 {[%clk 0:02:49]} 19. e5 {[%clk 0:00:23]}  dxe5 {[%clk 0:02:49]} 20. d6 {[%clk 0:00:24]}  Qxd6 {[%clk 0:02:49]} 21. Qxd6 {[%clk 0:00:18]}  Nxd6 {[%clk 0:02:49]} 22. fxe5 {[%clk 0:00:19]}  Ne4 {[%clk 0:02:48]} 23. Nxe4 {[%clk 0:00:17]}  fxe4 {[%clk 0:02:48]} 24. Bxc5 {[%clk 0:00:18]}  Re8 {[%clk 0:02:48]} 25. Rxe4 {[%clk 0:00:18]}  Bf5 {[%clk 0:02:45]} 26. Re2 {[%clk 0:00:18]}  Rxe5 {[%clk 0:02:43]} 27. Rxe5 {[%clk 0:00:17]}  Bxe5 {[%clk 0:02:44]} 28. Bxb7 {[%clk 0:00:17]}  Rb8 {[%clk 0:02:43]} 29. Bd5+ {[%clk 0:00:17]}  Kg7 {[%clk 0:02:44]} 30. Re1 {[%clk 0:00:17]}  Rxb2+ {[%clk 0:02:44]} 31. Bg2 {[%clk 0:00:15]}  Kf6 {[%clk 0:02:39]} 32. Be7+ {[%clk 0:00:12]}  Kxe7 {[%clk 0:02:39]} 33. Rxe5+ {[%clk 0:00:12]}  Kd6 {[%clk 0:02:39]} 34. Ra5 {[%clk 0:00:12]}  Rb6 {[%clk 0:02:37]} 35. g4 {[%clk 0:00:11]}  Bd7 {[%clk 0:02:36]} 36. Rd5+ {[%clk 0:00:12]}  Ke7 {[%clk 0:02:36]} 37. a5 {[%clk 0:00:12]}  Rb2 {[%clk 0:02:36]} 38. Re5+ {[%clk 0:00:11]}  Kf6 {[%clk 0:02:35]} 39. Rc5 {[%clk 0:00:07]}  Bb5 {[%clk 0:02:34]} 40. g5+ {[%clk 0:00:07]}  Ke6 {[%clk 0:02:33]} 41. Kg3 {[%clk 0:00:07]}  Kd6 {[%clk 0:02:28]} 42. Rd5+ {[%clk 0:00:07]}  Ke7 {[%clk 0:02:28]} 43. Rc5 {[%clk 0:00:07]}  Ra2 {[%clk 0:02:25]} 44. Rc7+ {[%clk 0:00:07]}  Kd6 {[%clk 0:02:25]} 45. Rxh7 {[%clk 0:00:07]}  Rxa5 {[%clk 0:02:25]} 46. Be4 {[%clk 0:00:07]}  Ra3+ {[%clk 0:02:22]} 47. Kf4 {[%clk 0:00:06]}  Ra4 {[%clk 0:02:22]} 48. Ke3 {[%clk 0:00:06]}  Ke5 {[%clk 0:02:20]} 49. Bxg6 {[%clk 0:00:04]}  Ra3+ {[%clk 0:02:21]} 50. Kd2 {[%clk 0:00:04]}  Kf4 {[%clk 0:02:21]} 51. h4 {[%clk 0:00:04]}  Rh3 {[%clk 0:02:15]} 52. Bc2 {[%clk 0:00:03]}  Rh2+ {[%clk 0:02:14]} 53. Kc3 {[%clk 0:00:03]}  Rh3+ {[%clk 0:02:14]} 54. Kd2 {[%clk 0:00:02]}  Rh2+ {[%clk 0:02:14]} 55. Kc3 {[%clk 0:00:03]}  Ke5 {[%clk 0:02:15]} 56. g6 {[%clk 0:00:03]}  Kf6 {[%clk 0:02:13]} 57. g7 {[%clk 0:00:02]}  Rg2 {[%clk 0:02:13]} 58. h5 {[%clk 0:00:02]}  Rg3+ {[%clk 0:02:10]} 59. Kd2 {[%clk 0:00:01]}  Be8 {[%clk 0:02:05]} 60. h6 {[%clk 0:00:01]}  Rg2+ {[%clk 0:02:05]} 61. Kc3 {[%clk 0:00:01]}  Rxc2+ {[%clk 0:02:05]} 62. Kxc2 {[%clk 0:00:01]}  Bg6+ {[%clk 0:02:06]} 63. Kb3 {[%clk 0:00:01]}  Bxh7 {[%clk 0:02:07]} 64. Ka4 {[%clk 0:00:02]}  Kf7 {[%clk 0:02:07]} 65. Ka5 {[%clk 0:00:02]}  Bd3 {[%clk 0:02:07]} 66. Kb4 {[%clk 0:00:01]}  Kg8 {[%clk 0:02:07]} 67. Ka5 {[%clk 0:00:01]}  Bb5 {[%clk 0:02:07]} 68. Kb6 {[%clk 0:00:01]}  Bc4 {[%clk 0:02:07]} 69. Ka5 {[%clk 0:00:02]}  Kh7 {[%clk 0:02:06]} 70. Kb6 {[%clk 0:00:02]}  Bb5 {[%clk 0:01:57]} 71. Ka5 {[%clk 0:00:02]}  Bd3 {[%clk 0:01:57]} 72. Kb6 {[%clk 0:00:03]}  Bc4 {[%clk 0:01:56]} 73. Ka5 {[%clk 0:00:03]}  Bb5 {[%clk 0:01:51]} 74. Kb6 {[%clk 0:00:03]}  Be2 {[%clk 0:01:50]} 75. Ka5 {[%clk 0:00:04]}  Kg8 {[%clk 0:01:51]} 76. Kb6 {[%clk 0:00:04]}  Kf7 {[%clk 0:01:51]} 77. Ka5 {[%clk 0:00:05]}  Bc4 {[%clk 0:01:50]} 78. Kb6 {[%clk 0:00:05]}  Kg6 {[%clk 0:01:45]} 79. g8=Q+ {[%clk 0:00:05]}  Bxg8 {[%clk 0:01:45]} 80. Kxa6 {[%clk 0:00:05]}  Kxh6 {[%clk 0:01:46]} 1/2-1/2


[Site "https://www.chess.com"]

[Event "Titled Tuesday Blitz November 08 Early 2022"]
[White "Rosh Jain"]
[Black "Manelyuk, Daniil"]
[WhiteFideId "25789465"]
[BlackFideId "44173920"]
[WhiteElo "2233"]
[BlackElo "2209"]
[Result "1-0"]
[Round "01"]
[TimeControl "180+1"]
[Date "2022.11.09"]
[WhiteClock "0:00:02"]
[BlackClock "0:00:02"]

1. e4 {[%clk 0:03:00]}  e6 {[%clk 0:02:55]} 2. d4 {[%clk 0:02:59]}  d5 {[%clk 0:02:55]} 3. Nc3 {[%clk 0:02:58]}  Bb4 {[%clk 0:02:55]} 4. exd5 {[%clk 0:02:58]}  exd5 {[%clk 0:02:53]} 5. Qf3 {[%clk 0:02:58]}  Ne7 {[%clk 0:02:50]} 6. Bd3 {[%clk 0:02:57]}  Nd7 {[%clk 0:02:46]} 7. Ne2 {[%clk 0:02:56]}  O-O {[%clk 0:02:45]} 8. Bg5 {[%clk 0:02:55]}  f6 {[%clk 0:02:42]} 9. Bh4 {[%clk 0:02:54]}  c6 {[%clk 0:02:38]} 10. O-O-O {[%clk 0:02:46]}  b5 {[%clk 0:02:28]} 11. Nf4 {[%clk 0:01:51]}  Bxc3 {[%clk 0:02:19]} 12. bxc3 {[%clk 0:01:50]}  Rf7 {[%clk 0:01:54]} 13. Rde1 {[%clk 0:01:31]}  Qa5 {[%clk 0:01:45]} 14. Kd2 {[%clk 0:01:30]}  b4 {[%clk 0:01:42]} 15. cxb4 {[%clk 0:01:04]}  Qxb4+ {[%clk 0:01:33]} 16. c3 {[%clk 0:01:04]}  Qb2+ {[%clk 0:01:18]} 17. Bc2 {[%clk 0:01:03]}  Nf5 {[%clk 0:01:18]} 18. Rb1 {[%clk 0:00:45]}  Qxa2 {[%clk 0:01:16]} 19. Ra1 {[%clk 0:00:34]}  Nxh4 {[%clk 0:01:01]} 20. Qh5 {[%clk 0:00:28]}  Qxa1 {[%clk 0:00:32]} 21. Qxh7+ {[%clk 0:00:24]}  Kf8 {[%clk 0:00:32]} 22. Rxa1 {[%clk 0:00:19]}  g5 {[%clk 0:00:31]} 23. Qh8+ {[%clk 0:00:19]}  Ke7 {[%clk 0:00:31]} 24. Ng6+ {[%clk 0:00:17]}  Nxg6 {[%clk 0:00:24]} 25. Bxg6 {[%clk 0:00:18]}  Bb7 {[%clk 0:00:24]} 26. Qh6 {[%clk 0:00:09]}  Rff8 {[%clk 0:00:23]} 27. Qg7+ {[%clk 0:00:09]}  Kd6 {[%clk 0:00:23]} 28. Re1 {[%clk 0:00:09]}  Rg8 {[%clk 0:00:19]} 29. Qe7+ {[%clk 0:00:08]}  Kc7 {[%clk 0:00:18]} 30. Bf5 {[%clk 0:00:08]}  Rad8 {[%clk 0:00:17]} 31. Rb1 {[%clk 0:00:08]}  Ba6 {[%clk 0:00:14]} 32. Bxd7 {[%clk 0:00:04]}  Rxd7 {[%clk 0:00:14]} 33. Qxf6 {[%clk 0:00:04]}  Re8 {[%clk 0:00:14]} 34. Re1 {[%clk 0:00:01]}  Rb8 {[%clk 0:00:04]} 35. Qxg5 {[%clk 0:00:01]}  Rb2+ {[%clk 0:00:03]} 36. Ke3 {[%clk 0:00:01]}  Rd6 {[%clk 0:00:01]} 37. Kf3 {[%clk 0:00:02]}  Rd7 {[%clk 0:00:02]} 38. Re7 {[%clk 0:00:02]} 1-0


[Site "https://www.chess.com"]

[Event "Titled Tuesday Blitz November 08 Early 2022"]
[White "Rudzinska, Michalina"]
[Black "Shuvalova, Polina"]
[WhiteFideId "1172883"]
[BlackFideId "24171760"]
[WhiteElo "2207"]
[BlackElo "2342"]
[Result "0-1"]
[Round "01"]
[TimeControl "180+1"]
[Date "2022.11.09"]
[WhiteClock "0:00:32"]
[BlackClock "0:00:13"]

1. e4 {[%clk 0:03:00]}  c5 {[%clk 0:01:55]} 2. c3 {[%clk 0:02:54]}  Nf6 {[%clk 0:01:55]} 3. e5 {[%clk 0:02:54]}  Nd5 {[%clk 0:01:55]} 4. Nf3 {[%clk 0:02:54]}  Nc6 {[%clk 0:01:55]} 5. Bc4 {[%clk 0:02:54]}  Nb6 {[%clk 0:01:55]} 6. Bb3 {[%clk 0:02:54]}  d5 {[%clk 0:01:55]} 7. exd6 {[%clk 0:02:53]}  Qxd6 {[%clk 0:01:56]} 8. O-O {[%clk 0:02:51]}  Bg4 {[%clk 0:01:56]} 9. d4 {[%clk 0:02:37]}  cxd4 {[%clk 0:01:51]} 10. cxd4 {[%clk 0:02:36]}  e6 {[%clk 0:01:48]} 11. Nc3 {[%clk 0:02:12]}  Be7 {[%clk 0:01:36]} 12. Be3 {[%clk 0:01:59]}  O-O {[%clk 0:01:35]} 13. Ne4 {[%clk 0:01:49]}  Qd7 {[%clk 0:01:26]} 14. Ned2 {[%clk 0:01:45]}  Rad8 {[%clk 0:01:25]} 15. Bc2 {[%clk 0:01:40]}  Bf6 {[%clk 0:01:20]} 16. Bxh7+ {[%clk 0:01:29]}  Kxh7 {[%clk 0:01:16]} 17. Ng5+ {[%clk 0:01:29]}  Bxg5 {[%clk 0:01:15]} 18. Qxg4 {[%clk 0:01:29]}  Bxe3 {[%clk 0:01:05]} 19. fxe3 {[%clk 0:01:30]}  f5 {[%clk 0:01:01]} 20. Qh5+ {[%clk 0:01:29]}  Kg8 {[%clk 0:01:00]} 21. Nf3 {[%clk 0:01:27]}  Qf7 {[%clk 0:00:59]} 22. Qh4 {[%clk 0:01:21]}  Qg6 {[%clk 0:00:42]} 23. Ng5 {[%clk 0:01:18]}  Rfe8 {[%clk 0:00:40]} 24. Rf3 {[%clk 0:01:14]}  Qh6 {[%clk 0:00:36]} 25. Qg3 {[%clk 0:01:06]}  Nd5 {[%clk 0:00:35]} 26. Raf1 {[%clk 0:01:01]}  Nf6 {[%clk 0:00:34]} 27. h3 {[%clk 0:00:59]}  Qg6 {[%clk 0:00:29]} 28. h4 {[%clk 0:00:48]}  Qh5 {[%clk 0:00:27]} 29. Qc7 {[%clk 0:00:40]}  Re7 {[%clk 0:00:20]} 30. Qh2 {[%clk 0:00:39]}  Nb4 {[%clk 0:00:18]} 31. Qh3 {[%clk 0:00:32]}  Nbd5 {[%clk 0:00:17]} 32. e4 {[%clk 0:00:31]}  Nxe4 {[%clk 0:00:14]} 33. Nxe4 {[%clk 0:00:32]}  fxe4 {[%clk 0:00:15]} 34. Rg3 {[%clk 0:00:32]}  Rf8 {[%clk 0:00:13]} 35. Rxf8+ {[%clk 0:00:31]}  Kxf8 {[%clk 0:00:14]} 36. Rg6 {[%clk 0:00:32]}  Qxg6 {[%clk 0:00:13]} 0-1


[Site "https://www.chess.com"]

[Event "Titled Tuesday Blitz November 08 Early 2022"]
[White "Samadov, Read"]
[Black "Guliev, Logman"]
[WhiteFideId "13417444"]
[BlackFideId "13400061"]
[WhiteElo "2355"]
[BlackElo "2161"]
[Result "1-0"]
[Round "01"]
[TimeControl "180+1"]
[Date "2022.11.09"]
[WhiteClock "0:00:13"]
[BlackClock "0:00:22"]

1. d4 {[%clk 0:03:00]}  Nf6 {[%clk 0:02:57]} 2. c4 {[%clk 0:03:00]}  e6 {[%clk 0:02:57]} 3. Nf3 {[%clk 0:03:01]}  Bb4+ {[%clk 0:02:57]} 4. Nbd2 {[%clk 0:03:00]}  b6 {[%clk 0:02:54]} 5. a3 {[%clk 0:02:59]}  Bxd2+ {[%clk 0:02:54]} 6. Qxd2 {[%clk 0:03:00]}  Bb7 {[%clk 0:02:53]} 7. e3 {[%clk 0:03:00]}  O-O {[%clk 0:02:53]} 8. Be2 {[%clk 0:03:01]}  d6 {[%clk 0:02:53]} 9. b4 {[%clk 0:03:01]}  Nbd7 {[%clk 0:02:53]} 10. Bb2 {[%clk 0:03:00]}  c5 {[%clk 0:02:51]} 11. dxc5 {[%clk 0:02:57]}  dxc5 {[%clk 0:02:51]} 12. O-O {[%clk 0:02:55]}  Qe7 {[%clk 0:02:51]} 13. Rfd1 {[%clk 0:02:53]}  Rfd8 {[%clk 0:02:51]} 14. Qc3 {[%clk 0:02:48]}  Nf8 {[%clk 0:02:48]} 15. b5 {[%clk 0:02:42]}  Ng6 {[%clk 0:02:44]} 16. a4 {[%clk 0:02:41]}  Rxd1+ {[%clk 0:02:39]} 17. Rxd1 {[%clk 0:02:39]}  Rd8 {[%clk 0:02:39]} 18. Rxd8+ {[%clk 0:02:13]}  Qxd8 {[%clk 0:02:39]} 19. h3 {[%clk 0:02:07]}  h6 {[%clk 0:02:34]} 20. Qd3 {[%clk 0:01:39]}  Qxd3 {[%clk 0:02:31]} 21. Bxd3 {[%clk 0:01:39]}  Be4 {[%clk 0:02:25]} 22. Ne1 {[%clk 0:01:33]}  Bxd3 {[%clk 0:02:23]} 23. Nxd3 {[%clk 0:01:33]}  Ne4 {[%clk 0:02:23]} 24. Be5 {[%clk 0:00:47]}  Nd2 {[%clk 0:02:18]} 25. Bb8 {[%clk 0:00:46]}  Nxc4 {[%clk 0:02:18]} 26. Bxa7 {[%clk 0:00:46]}  Ne7 {[%clk 0:02:11]} 27. a5 {[%clk 0:00:38]}  bxa5 {[%clk 0:01:50]} 28. Bxc5 {[%clk 0:00:38]}  Nd5 {[%clk 0:01:49]} 29. Kf1 {[%clk 0:00:35]}  a4 {[%clk 0:01:47]} 30. e4 {[%clk 0:00:31]}  Nd2+ {[%clk 0:01:34]} 31. Ke1 {[%clk 0:00:26]}  Nxe4 {[%clk 0:01:34]} 32. Bd4 {[%clk 0:00:22]}  a3 {[%clk 0:01:30]} 33. b6 {[%clk 0:00:18]}  Nd6 {[%clk 0:01:15]} 34. Kd1 {[%clk 0:00:18]}  a2 {[%clk 0:01:11]} 35. Nc1 {[%clk 0:00:15]}  Nxb6 {[%clk 0:00:45]} 36. Nxa2 {[%clk 0:00:14]}  Nf5 {[%clk 0:00:45]} 37. Bxb6 {[%clk 0:00:14]}  Nh4 {[%clk 0:00:43]} 38. g3 {[%clk 0:00:14]}  Nf5 {[%clk 0:00:39]} 39. Ke2 {[%clk 0:00:14]}  g5 {[%clk 0:00:40]} 40. Nc3 {[%clk 0:00:15]}  Kg7 {[%clk 0:00:40]} 41. Ne4 {[%clk 0:00:15]}  Kg6 {[%clk 0:00:40]} 42. Kf3 {[%clk 0:00:15]}  h5 {[%clk 0:00:39]} 43. Bc5 {[%clk 0:00:14]}  Nh6 {[%clk 0:00:33]} 44. Be7 {[%clk 0:00:13]}  g4+ {[%clk 0:00:31]} 45. hxg4 {[%clk 0:00:14]}  hxg4+ {[%clk 0:00:27]} 46. Kf4 {[%clk 0:00:14]}  f5 {[%clk 0:00:25]} 47. Nc5 {[%clk 0:00:13]}  Kf7 {[%clk 0:00:23]} 48. Bg5 {[%clk 0:00:13]}  Ng8 {[%clk 0:00:24]} 49. Ke5 {[%clk 0:00:13]}  Kg6 {[%clk 0:00:22]} 50. Nxe6 {[%clk 0:00:13]} 1-0


[Site "https://www.chess.com"]

[Event "Titled Tuesday Blitz November 08 Early 2022"]
[White "Samaganova, Aleksandra"]
[Black "Tasev, Dejan"]
[WhiteFideId "13800221"]
[BlackFideId "936618"]
[WhiteElo "1864"]
[BlackElo "2256"]
[Result "0-1"]
[Round "01"]
[TimeControl "180+1"]
[Date "2022.11.09"]
[WhiteClock "0:00:02"]
[BlackClock "0:01:12"]

1. c4 {[%clk 0:03:00]}  Nf6 {[%clk 0:02:59]} 2. Nc3 {[%clk 0:02:59]}  g6 {[%clk 0:02:59]} 3. g3 {[%clk 0:02:58]}  Bg7 {[%clk 0:02:59]} 4. Bg2 {[%clk 0:02:59]}  O-O {[%clk 0:02:59]} 5. e3 {[%clk 0:02:57]}  d6 {[%clk 0:02:57]} 6. Nge2 {[%clk 0:02:57]}  c5 {[%clk 0:02:58]} 7. O-O {[%clk 0:02:56]}  Nc6 {[%clk 0:02:58]} 8. a3 {[%clk 0:02:56]}  Bd7 {[%clk 0:02:57]} 9. h3 {[%clk 0:02:55]}  Rc8 {[%clk 0:02:55]} 10. Rb1 {[%clk 0:02:53]}  a6 {[%clk 0:02:53]} 11. b4 {[%clk 0:02:48]}  cxb4 {[%clk 0:02:53]} 12. axb4 {[%clk 0:02:47]}  Ne5 {[%clk 0:02:52]} 13. d3 {[%clk 0:02:45]}  b5 {[%clk 0:02:51]} 14. f4 {[%clk 0:02:35]}  Nc6 {[%clk 0:02:37]} 15. cxb5 {[%clk 0:02:29]}  axb5 {[%clk 0:02:36]} 16. Nxb5 {[%clk 0:02:28]}  Qb6 {[%clk 0:02:32]} 17. Nbd4 {[%clk 0:02:05]}  Nxd4 {[%clk 0:02:28]} 18. Nxd4 {[%clk 0:02:05]}  e5 {[%clk 0:02:16]} 19. fxe5 {[%clk 0:01:52]}  dxe5 {[%clk 0:02:15]} 20. Nf3 {[%clk 0:01:51]}  e4 {[%clk 0:02:11]} 21. Nd4 {[%clk 0:01:42]}  Nd5 {[%clk 0:02:00]} 22. Bd2 {[%clk 0:00:44]}  Bxd4 {[%clk 0:01:49]} 23. exd4 {[%clk 0:00:44]}  Qxd4+ {[%clk 0:01:48]} 24. Kh2 {[%clk 0:00:44]}  e3 {[%clk 0:01:47]} 25. Be1 {[%clk 0:00:43]}  Nc3 {[%clk 0:01:40]} 26. Bxc3 {[%clk 0:00:42]}  Rxc3 {[%clk 0:01:39]} 27. Re1 {[%clk 0:00:16]}  Rxd3 {[%clk 0:01:31]} 28. Qf3 {[%clk 0:00:14]}  Bf5 {[%clk 0:01:19]} 29. b5 {[%clk 0:00:09]}  Rd2 {[%clk 0:01:14]} 30. Kh1 {[%clk 0:00:03]}  Rxg2 {[%clk 0:01:11]} 31. Qxg2 {[%clk 0:00:02]}  Be4 {[%clk 0:01:12]} 0-1


[Site "https://www.chess.com"]

[Event "Titled Tuesday Blitz November 08 Early 2022"]
[White "Santos Flores, Alberto"]
[Black "Svane, Rasmus"]
[WhiteFideId "3601234"]
[BlackFideId "4657101"]
[WhiteElo "2235"]
[BlackElo "2674"]
[Result "0-1"]
[Round "01"]
[TimeControl "180+1"]
[Date "2022.11.08"]
[WhiteClock "0:00:01"]
[BlackClock "0:01:10"]

1. d4 {[%clk 0:02:55]}  d5 {[%clk 0:02:59]} 2. Bf4 {[%clk 0:02:53]}  e6 {[%clk 0:02:58]} 3. e3 {[%clk 0:02:52]}  Bd6 {[%clk 0:02:59]} 4. Bg3 {[%clk 0:02:51]}  Nf6 {[%clk 0:02:58]} 5. Nd2 {[%clk 0:02:49]}  O-O {[%clk 0:02:58]} 6. Ngf3 {[%clk 0:02:49]}  c5 {[%clk 0:02:58]} 7. c3 {[%clk 0:02:48]}  Qc7 {[%clk 0:02:59]} 8. Bd3 {[%clk 0:02:48]}  Nbd7 {[%clk 0:02:59]} 9. Qe2 {[%clk 0:02:43]}  e5 {[%clk 0:02:49]} 10. dxe5 {[%clk 0:02:41]}  Nxe5 {[%clk 0:02:50]} 11. Nxe5 {[%clk 0:02:24]}  Bxe5 {[%clk 0:02:51]} 12. O-O {[%clk 0:02:23]}  Bxg3 {[%clk 0:02:41]} 13. hxg3 {[%clk 0:02:22]}  Bg4 {[%clk 0:02:42]} 14. Nf3 {[%clk 0:02:19]}  Rad8 {[%clk 0:02:41]} 15. c4 {[%clk 0:02:16]}  d4 {[%clk 0:02:31]} 16. exd4 {[%clk 0:02:15]}  Rxd4 {[%clk 0:02:32]} 17. Qc2 {[%clk 0:02:05]}  Bxf3 {[%clk 0:02:29]} 18. gxf3 {[%clk 0:02:06]}  h5 {[%clk 0:02:27]} 19. Kg2 {[%clk 0:02:04]}  Rfd8 {[%clk 0:02:23]} 20. Rfd1 {[%clk 0:01:21]}  h4 {[%clk 0:02:22]} 21. Be4 {[%clk 0:01:09]}  hxg3 {[%clk 0:02:17]} 22. fxg3 {[%clk 0:01:07]}  Nh5 {[%clk 0:02:17]} 23. f4 {[%clk 0:01:03]}  Nxf4+ {[%clk 0:02:16]} 24. gxf4 {[%clk 0:01:02]}  Qxf4 {[%clk 0:02:17]} 25. Bd5 {[%clk 0:00:22]}  Qg5+ {[%clk 0:01:58]} 26. Kf2 {[%clk 0:00:20]}  Qh4+ {[%clk 0:01:40]} 27. Kf1 {[%clk 0:00:05]}  Qf6+ {[%clk 0:01:17]} 28. Kg1 {[%clk 0:00:01]}  R8xd5 {[%clk 0:01:10]} 0-1


[Site "https://www.chess.com"]

[Event "Titled Tuesday Blitz November 08 Early 2022"]
[White "Sarana, Alexey"]
[Black "Goltseva, Ekaterina"]
[WhiteFideId "24133795"]
[BlackFideId "24173770"]
[WhiteElo "2708"]
[BlackElo "2200"]
[Result "0-1"]
[Round "01"]
[TimeControl "180+1"]
[Date "2022.11.08"]
[WhiteClock "0:00:12"]
[BlackClock "0:00:08"]

1. c4 {[%clk 0:02:52]}  Nf6 {[%clk 0:02:54]} 2. Nc3 {[%clk 0:02:50]}  c5 {[%clk 0:02:52]} 3. Nf3 {[%clk 0:02:49]}  e6 {[%clk 0:02:51]} 4. g3 {[%clk 0:02:38]}  d5 {[%clk 0:02:45]} 5. cxd5 {[%clk 0:02:36]}  Nxd5 {[%clk 0:02:45]} 6. Bg2 {[%clk 0:02:31]}  Nc6 {[%clk 0:02:25]} 7. O-O {[%clk 0:02:29]}  Be7 {[%clk 0:02:22]} 8. e4 {[%clk 0:02:29]}  Ndb4 {[%clk 0:02:17]} 9. h4 {[%clk 0:02:13]}  h6 {[%clk 0:02:08]} 10. b3 {[%clk 0:02:13]}  O-O {[%clk 0:02:03]} 11. Ba3 {[%clk 0:02:13]}  Nd3 {[%clk 0:02:01]} 12. Qe2 {[%clk 0:02:04]}  b6 {[%clk 0:01:29]} 13. Qe3 {[%clk 0:02:04]}  Ba6 {[%clk 0:01:25]} 14. Rfd1 {[%clk 0:02:00]}  Rc8 {[%clk 0:01:19]} 15. Bf1 {[%clk 0:02:00]}  Rc7 {[%clk 0:01:12]} 16. Ne2 {[%clk 0:01:29]}  Rd7 {[%clk 0:01:07]} 17. Nf4 {[%clk 0:01:29]}  Bf6 {[%clk 0:00:51]} 18. e5 {[%clk 0:01:23]}  Ncxe5 {[%clk 0:00:35]} 19. Rab1 {[%clk 0:00:36]}  Nxf3+ {[%clk 0:00:34]} 20. Qxf3 {[%clk 0:00:36]}  Ne5 {[%clk 0:00:30]} 21. Qe4 {[%clk 0:00:33]}  Bb7 {[%clk 0:00:27]} 22. Qe3 {[%clk 0:00:30]}  Nf3+ {[%clk 0:00:24]} 23. Kh1 {[%clk 0:00:30]}  Nxd2+ {[%clk 0:00:23]} 24. Bg2 {[%clk 0:00:31]}  Nxb1 {[%clk 0:00:17]} 25. Rxb1 {[%clk 0:00:30]}  Rd1+ {[%clk 0:00:15]} 26. Rxd1 {[%clk 0:00:31]}  Qxd1+ {[%clk 0:00:16]} 27. Kh2 {[%clk 0:00:32]}  Bxg2 {[%clk 0:00:16]} 28. Kxg2 {[%clk 0:00:33]}  Qd4 {[%clk 0:00:15]} 29. Qf3 {[%clk 0:00:32]}  Rd8 {[%clk 0:00:15]} 30. Bc1 {[%clk 0:00:32]}  e5 {[%clk 0:00:15]} 31. Be3 {[%clk 0:00:32]}  e4 {[%clk 0:00:14]} 32. Qg4 {[%clk 0:00:30]}  Qe5 {[%clk 0:00:14]} 33. Nh5 {[%clk 0:00:28]}  Rd5 {[%clk 0:00:10]} 34. Qc8+ {[%clk 0:00:22]}  Kh7 {[%clk 0:00:09]} 35. Nf4 {[%clk 0:00:22]}  Rd8 {[%clk 0:00:08]} 36. Qb7 {[%clk 0:00:23]}  Qe7 {[%clk 0:00:06]} 37. Qc6 {[%clk 0:00:23]}  Bd4 {[%clk 0:00:06]} 38. Bc1 {[%clk 0:00:18]}  e3 {[%clk 0:00:06]} 39. fxe3 {[%clk 0:00:10]}  Bxe3 {[%clk 0:00:07]} 40. Ba3 {[%clk 0:00:11]}  Bxf4 {[%clk 0:00:06]} 41. gxf4 {[%clk 0:00:10]}  Rd2+ {[%clk 0:00:06]} 42. Kf3 {[%clk 0:00:11]}  Qe2+ {[%clk 0:00:06]} 43. Kg3 {[%clk 0:00:11]}  Qf2+ {[%clk 0:00:06]} 44. Kg4 {[%clk 0:00:10]}  Qg2+ {[%clk 0:00:05]} 45. Qxg2 {[%clk 0:00:11]}  Rxg2+ {[%clk 0:00:06]} 46. Kf5 {[%clk 0:00:11]}  Rxa2 {[%clk 0:00:06]} 47. Bc1 {[%clk 0:00:12]}  b5 {[%clk 0:00:06]} 48. Ke4 {[%clk 0:00:13]}  a5 {[%clk 0:00:06]} 49. h5 {[%clk 0:00:13]}  Rc2 {[%clk 0:00:06]} 50. Be3 {[%clk 0:00:13]}  a4 {[%clk 0:00:07]} 51. bxa4 {[%clk 0:00:13]}  bxa4 {[%clk 0:00:08]} 52. Bxc5 {[%clk 0:00:12]}  Rxc5 {[%clk 0:00:08]} 0-1


[Site "https://www.chess.com"]